[Event "27th CRO-chT 1B-Men 2018"]
[Site "Biograd"]
[Date "2018.09.15"]
[Round "1.23"]
[White "Pucovski, Miroslav"]
[Black "Tomulic, Teo"]
[Result "*"]
[ECO "B22"]
[WhiteElo "2241"]
[BlackElo "2264"]
[Annotator "NA"]
[PlyCount "37"]
[EventDate "2018.09.15"]
[EventType "team-tourn"]
[EventCountry "CRO"]
[SourceTitle "playchess.com"]
[Source "ChessBase"]
[SourceQuality "1"]
[TimeControl "40/5400+30:1800+30"]

1. e4 {[%emt 0:00:30]} c5 {[%emt 0:00:30]} 2. c3 {[%emt 0:00:00]} d5 {[%emt 0:00:00]} 3. exd5 {[%emt 0:00:00]} Qxd5 {[%emt 0:00:00]} 4. d4 {[%emt 0:00:00]} Nc6 {[%emt 0:00:00]} 5. Nf3 {[%emt 0:00:00]} Bg4 {[%emt 0:00:00]} 6. Be2 {[%emt 0:00:30]} e6 {[%emt 0:00:30]} 7. c4 {[%emt 0:03:30]} Qd6 {[%emt 0:09:30]} 8. d5 {[%emt 0:01:30]} exd5 {[%emt 0:00:30]} 9. cxd5 {[%emt 0:00:30]} Bxf3 {[%emt 0:00:30]} 10. Bxf3 {[%emt 0:01:30]} Nd4 {[%emt 0:00:30]} 11. Be3 {[%emt 0:09:30]} Qe5 {[%emt 0:37:30]} 12. O-O {[%emt 0:10:30]} Bd6 {[%emt 0:00:30]} 13. g3 {[%emt 0:00:30]} Nxf3+ {[%emt 0:00:30]} 14. Qxf3 {[%emt 0:00:30]} Ne7 {[%emt 0:07:30]} 15. Nc3 {[%emt 0:05:30]} O-O {[%emt 0:08:30]} 16. Rfe1 {[%emt 0:09:30]} Qf5 {[%emt 0:00:30]} 17. Qg2 {[%emt 0:15:30]} b6 {[%emt 0:04:30]} 18. Ne4 {[%emt 0:20:03] k} Be5 {[%emt 0:02:30] 7} 19. f4 {[%emt 0:00:08] k [%clk 0:17:49]} *

[Event "27th CRO-chT 1B-Men 2018"]
[Site "Biograd"]
[Date "2018.09.15"]
[Round "1.24"]
[White "Safar, Sandro"]
[Black "Bubalovic, Davorin"]
[Result "*"]
[ECO "D02"]
[WhiteElo "2214"]
[BlackElo "2206"]
[Annotator "NA"]
[PlyCount "46"]
[EventDate "2018.09.15"]
[EventType "team-tourn"]
[EventCountry "CRO"]
[SourceTitle "playchess.com"]
[Source "ChessBase"]
[SourceQuality "1"]
[TimeControl "40/5400+30:1800+30"]

1. d4 {[%emt 0:00:30]} Nf6 {[%emt 0:00:30]} 2. Nf3 {[%emt 0:00:00]} e6 {[%emt 0:00:30]} 3. Bf4 {[%emt 0:00:00]} d5 {[%emt 0:00:30]} 4. e3 {[%emt 0:00:30]} c5 {[%emt 0:03:30]} 5. c3 {[%emt 0:00:30]} Nc6 {[%emt 0:00:30]} 6. Nbd2 {[%emt 0:00:30]} Be7 {[%emt 0:02:30]} 7. Bd3 {[%emt 0:00:30]} Qb6 {[%emt 0:02:30]} 8. Qc2 {[%emt 0:06:30]} Bd7 {[%emt 0:03:30]} 9. h3 {[%emt 0:03:30]} Rc8 {[%emt 0:04:30]} 10. a3 {[%emt 0:01:30]} a5 {[%emt 0:06:30]} 11. O-O {[%emt 0:01:30]} Nh5 {[%emt 0:07:30]} 12. Bh2 {[%emt 0:00:30]} g6 {[%emt 0:02:30]} 13. Rad1 {[%emt 0:12:30]} f5 {[%emt 0:05:30]} 14. Ne5 {[%emt 0:02:30]} Nf6 {[%emt 0:03:30]} 15. Nxc6 {[%emt 0:03:30]} Bxc6 {[%emt 0:00:30]} 16. Be5 {[%emt 0:00:30]} O-O {[%emt 0:00:30]} 17. f4 {[%emt 0:09:30]} Nd7 {[%emt 0:02:30]} 18. Nf3 {[%emt 0:01:30]} Bb5 {[%emt 0:02:30]} 19. g4 {[%emt 0:03:30]} Bxd3 {[%emt 0:00:30]} 20. Qxd3 {[%emt 0:00:30]} cxd4 {[%emt 0:12:00]} 21. cxd4 {[%emt 0:09:30]} Qxb2 {[%emt 0:08:30]} 22. Rb1 {[%emt 0:02:30]} Qxa3 {[%emt 0:03:30]} 23. Rb3 {[%emt 0:01:30]} Qa2 {[%emt 0:04:30]} *

[Event "27th CRO-chT 1B-Men 2018"]
[Site "Biograd"]
[Date "2018.09.15"]
[Round "1.30"]
[White "Jusic, Zdenko"]
[Black "Brulic, Denis"]
[Result "*"]
[ECO "B27"]
[WhiteElo "2261"]
[BlackElo "2232"]
[Annotator "NA"]
[PlyCount "49"]
[EventDate "2018.09.15"]
[EventType "team-tourn"]
[EventCountry "CRO"]
[SourceTitle "playchess.com"]
[Source "ChessBase"]
[SourceQuality "1"]
[TimeControl "40/5400+30:1800+30"]

1. e4 {[%emt 0:03:30]} c5 {[%emt 0:00:30]} 2. Nf3 {[%emt 0:00:30]} g6 {[%emt 0:00:30]} 3. c3 {[%emt 0:00:30]} Bg7 {[%emt 0:00:30]} 4. d4 {[%emt 0:00:00]} cxd4 {[%emt 0:00:00]} 5. cxd4 {[%emt 0:00:00]} d5 {[%emt 0:00:00]} 6. e5 {[%emt 0:00:30]} Nc6 {[%emt 0:00:30]} 7. h3 {[%emt 0:00:30]} e6 {[%emt 0:03:30]} 8. Nc3 {[%emt 0:00:30]} Nge7 {[%emt 0:00:30]} 9. g4 {[%emt 0:01:30]} f6 {[%emt 0:04:30]} 10. exf6 {[%emt 0:02:30]} Bxf6 {[%emt 0:00:30]} 11. Be3 {[%emt 0:06:30]} O-O {[%emt 0:03:30]} 12. Bg2 {[%emt 0:08:30]} Qd6 {[%emt 0:08:30]} 13. O-O {[%emt 0:05:30]} Bd7 {[%emt 0:06:30]} 14. Qd2 {[%emt 0:01:30]} Bg7 {[%emt 0:00:00]} 15. Rfe1 {[%emt 0:23:30]} Kh8 {[%emt 0:00:00]} 16. Bh6 {[%emt 0:01:30]} Rf7 {[%emt 0:14:30]} 17. Bxg7+ {[%emt 0:06:30]} Kxg7 {[%emt 0:01:30]} 18. Re3 {[%emt 0:01:30]} Raf8 {[%emt 0:01:30]} 19. Ne2 {[%emt 0:05:30] ]} h6 {[%emt 0:02:30] ]} 20. Ng3 {[%emt 0:03:30] ]} Rf4 {[%emt 0:06:30] ]} 21. a3 {[%emt 0:02:30] ]} Qc7 {[%emt 0:03:30] ]} 22. b4 {[%emt 0:02:30] ]} Qb6 {[%emt 0:01:30] ]} 23. Ne2 {[%emt 0:02:30] [%clk 0:20] [%clk 0:16:55]} Nc8 {[%emt 0:07:30] c} 24. Rc1 {[%emt 0:03:35] k} R4f6 {[%emt 0:00:30] 5} 25. Rc5 {[%emt 0:00:35] [%clk 0:16.30]} *

[Event "27th CRO-chT 1B-Men 2018"]
[Site "Biograd"]
[Date "2018.09.16"]
[Round "2.3"]
[White "Krstic, Uros"]
[Black "Bilobrk, Franjo"]
[Result "1-0"]
[ECO "C07"]
[WhiteElo "2364"]
[BlackElo "2360"]
[Annotator "NA"]
[PlyCount "59"]
[EventDate "2018.09.15"]
[EventType "team-tourn"]
[EventCountry "CRO"]
[SourceTitle "playchess.com"]
[Source "ChessBase"]
[SourceQuality "1"]
[TimeControl "40/5400+30:1800+30"]

{[%evp 21,53,0,8,0,0,0,0,0,0,0,25,25,298,138,189,192,200,181,189,32767,32767,32767,185,210,196,210,206,199,271,311,311,356,470,409]} 1. e4 {[%emt 0:07:30]} e6 {[%emt 0:00:30]} 2. d4 {[%emt 0:01:30]} d5 {[%emt 0:00:00]} 3. Nd2 {[%emt 0:00:30]} c5 {[%emt 0:00:00]} 4. exd5 {[%emt 0:00:30]} Qxd5 {[%emt 0:00:00]} 5. Ngf3 {[%emt 0:02:30]} cxd4 {[%emt 0:00:00]} 6. Bc4 {[%emt 0:00:00]} Qd6 {[%emt 0:00:30]} 7. O-O {[%emt 0:10:00]} Nf6 {[%emt 0:00:30]} 8. Nb3 {[%emt 0:02:30]} Nc6 {[%emt 0:00:30]} 9. Nbxd4 {[%emt 0:01:30]} Nxd4 {[%emt 0:00:00]} 10. Nxd4 {[%emt 0:00:00]} Be7 {[%emt 0:00:00]} 11. b3 {[%emt 0:04:00]} a6 {[%emt 0:04:30] LiveBook: 18 Partien} 12. a4 {[%emt 0:00:30] C07: French Tarrasch: 3...c5, 4 Ngf3 and 4 exd5 Qxd5} (12. Bb2 O-O 13. Qf3 Bd7 14. Rfe1 b5 15. Bd3 Rfe8 16. Rad1 Qc5 17. Qg3 Bd6 18. Qh4 e5 19. Nf5 Bxf5 20. Bxf5 {½-½ (50) Priyadharshan,K (2554)-Holt,C (2592) Berkeley 2018}) 12... Qc7 {[%emt 0:10:30]} 13. Qf3 {[%emt 0:07:30]} O-O {[%emt 0:01:30]} 14. Bb2 {[%emt 0:17:30]} Bd7 {[%emt 0:14:30]} 15. Rad1 {[%emt 0:08:30]} Rab8 $146 {[%emt 0:05:30]} ({Predecessor:} 15... Rac8 16. Rfe1 Bc6 17. Nxc6 Qxc6 18. Qh3 Rfd8 19. Bd3 h6 {1-0 (45) Popovic,D (2471)-Wiesner,R (2378) playchess.com INT 2005}) 16. Qe2 {[%emt 0:07:30]} Bc6 $2 {[%emt 0:08:30] [#]} (16... Bd6 $11 {und Schwarz ist OK.}) 17. Nf5 {[%emt 0:04:30]} (17. Nxe6 $1 $18 {[%mdl 512] and the rest is easy.} fxe6 18. Be5) 17... b5 {[%emt 0:08:30]} (17... exf5 $16 {was worth a try.} 18. Be5 Qb6 19. Bxb8 Ne4) 18. Be5 {[%emt 0:02:30]} Qb7 {[%emt 0:00:00]} 19. Nxe7+ {[%emt 0:01:12]} Qxe7 {[%emt 0:00:00]} 20. Bxb8 {[%emt 0:01:49]} Rxb8 {[%emt 0:00:30]} 21. axb5 {[%emt 0:01:10]} axb5 {[%emt 0:00:30] [#]} 22. Bd3 $1 {[%emt 0:00:28]} Qb7 {[%emt 0:00:30]} 23. f3 {[%emt 0:00:40]} Nd5 {[%emt 0:00:00]} 24. Qf2 {[%emt 0:03:43]} f5 {[%emt 0:09:00]} (24... Qe7 {is a better defense.} 25. Be4 Rc8) 25. Ra1 {[%emt 0:02:14]} Qe7 {[%emt 0:09:30]} 26. Rfe1 {[%emt 0:03:08]} g6 {[%emt 0:01:30]} 27. Qd4 $18 {[%emt 0:01:11]} Qg5 {[%emt 0:00:30]} 28. Ra7 {[%emt 0:01:57]} Rb7 {[%emt 0:03:30]} 29. Ra8+ {[%emt 0:00:47]} Kf7 {[%emt 0:00:00]} 30. Qh8 {[%emt 0:01:58]} 1-0

[Event "27th CRO-chT 1B-Men 2018"]
[Site "Biograd"]
[Date "2018.09.16"]
[Round "2.12"]
[White "Brulic, Denis"]
[Black "Safar, Sandro"]
[Result "1-0"]
[ECO "B38"]
[WhiteElo "2232"]
[BlackElo "2214"]
[Annotator "NA"]
[PlyCount "73"]
[EventDate "2018.09.15"]
[EventType "team-tourn"]
[EventCountry "CRO"]
[SourceTitle "playchess.com"]
[Source "ChessBase"]
[SourceQuality "1"]
[TimeControl "40/5400+30:1800+30"]

1. e4 {[%emt 0:01:30]} c5 {[%emt 0:00:30]} 2. Nf3 {[%emt 0:00:00]} Nc6 {[%emt 0:00:00]} 3. d4 {[%emt 0:00:00]} cxd4 {[%emt 0:00:00]} 4. Nxd4 {[%emt 0:00:30]} g6 {[%emt 0:00:30]} 5. c4 {[%emt 0:01:30]} Bg7 {[%emt 0:00:00]} 6. Be3 {[%emt 0:00:30]} Nf6 {[%emt 0:00:00]} 7. Nc3 {[%emt 0:00:00]} d6 {[%emt 0:00:30]} 8. Be2 {[%emt 0:00:00]} O-O {[%emt 0:00:00]} 9. O-O {[%emt 0:01:30]} Bd7 {[%emt 0:00:00]} 10. h3 {[%emt 0:04:30]} Nxd4 {[%emt 0:00:30]} 11. Bxd4 {[%emt 0:00:30]} Bc6 {[%emt 0:00:30]} 12. Qc2 {[%emt 0:01:30] B38: Sicilian: Maroczy Bind with 5...Bg7 and 7...0-0} a5 {[%emt 0:02:30]} 13. Rad1 {[%emt 0:03:30]} Nd7 {[%emt 0:00:30]} 14. Bxg7 {[%emt 0:02:30]} Kxg7 {[%emt 0:00:30]} 15. Bg4 {[%emt 0:00:30]} Ne5 {[%emt 0:05:30]} 16. c5 {[%emt 0:03:30]} Qb8 $146 {[%emt 0:07:30]} ({Predecessor:} 16... Nxg4 17. hxg4 Bd7 18. cxd6 Bxg4 19. dxe7 Qxe7 {1-0 (37) Grandelius,N (2655)-Thybo,J (2465) Vaxjo 2017}) 17. cxd6 {[%emt 0:03:30]} exd6 {[%emt 0:00:00]} 18. Rd4 {[%emt 0:04:30]} Rd8 {[%emt 0:04:00]} 19. Rfd1 {[%emt 0:07:30]} b5 {[%emt 0:06:30]} 20. Nd5 {[%emt 0:06:30]} Bxd5 {[%emt 0:23:30]} 21. Rxd5 {[%emt 0:00:30]} Qb6 {[%emt 0:00:30]} 22. Be2 {[%emt 0:06:30]} Rac8 {[%emt 0:06:30]} 23. Qb3 {[%emt 0:03:30]} b4 {[%emt 0:00:30]} 24. a3 {[%emt 0:04:30]} Rb8 {[%emt 0:09:30]} 25. axb4 {[%emt 0:04:30]} Qxb4 {[%emt 0:01:30]} (25... axb4 $16 26. g3 Qc7) 26. Qxb4 {[%emt 0:00:30]} Rxb4 {[%emt 0:00:30] [#]} (26... axb4 $142 27. f4 (27. Rxd6 Rdc8 $16) 27... Nc6 28. Rxd6 Rbc8) 27. Rxe5 $1 {[%emt 0:00:30]} Rxb2 {[%emt 0:01:30]} 28. Bf1 {[%emt 0:02:30]} dxe5 {[%emt 0:12:53]} 29. Rxd8 {[%emt 0:00:00]} Rb4 {[%emt 0:00:11]} 30. f3 {[%emt 0:01:00]} Kf6 {[%emt 0:00:11]} 31. Rd6+ {[%emt 0:00:30]} Kg5 {[%emt 0:01:04]} 32. Rd5 {[%emt 0:01:30]} Ra4 {[%emt 0:05:13]} 33. Rxe5+ {[%emt 0:00:30]} Kf4 {[%emt 0:01:17]} 34. Re7 $18 {[%emt 0:09:30]} f6 {[%emt 0:02:30]} 35. Kf2 {[%emt 0:01:30]} h5 {[%emt 0:00:33]} 36. h4 {[%emt 0:00:30]} Ra2+ {[%emt 0:00:41]} 37. Be2 {[%emt 0:00:30]} 1-0

[Event "27th CRO-chT 1B-Men 2018"]
[Site "Biograd"]
[Date "2018.09.16"]
[Round "2.16"]
[White "Stocko, Josip"]
[Black "Mathe, Gaspar"]
[Result "1-0"]
[ECO "C54"]
[WhiteElo "2322"]
[BlackElo "2308"]
[Annotator "NA"]
[PlyCount "77"]
[EventDate "2018.09.15"]
[EventType "team-tourn"]
[EventCountry "CRO"]
[SourceTitle "playchess.com"]
[Source "ChessBase"]
[SourceQuality "1"]
[TimeControl "40/5400+30:1800+30"]

{[%evp 8,69,70,58,32767,32767,32767,32767,32767,32767,32767,32767,32767,32767,32767,32767,32767,41,52,55,54,55,69,21,28,8,32767,32767,32767,32767,32767,32767,180,197,32767,189,179,126,304,316,330,289,331,173,32767,534,540,691,32767,1263,32767,32767,32767,32767,32767,32767,1089,1224,1295,1266,1571,10929,3054,1106]} 1. e4 {[%emt 0:00:30]} e5 {[%emt 0:00:30]} 2. Nf3 {[%emt 0:00:00]} Nc6 {[%emt 0:00:30]} 3. Bc4 {[%emt 0:00:00]} Bc5 {[%emt 0:00:00]} 4. c3 {[%emt 0:00:00]} Qe7 {[%emt 0:01:00]} 5. O-O {[%emt 0:01:00] LiveBook: 116 Partien} d6 {[%emt 0:00:30]} 6. d3 {[%emt 0:02:30]} Nf6 {[%emt 0:00:30]} 7. Bb3 {[%emt 0:00:30]} O-O {[%emt 0:00:30]} 8. h3 {[%emt 0:01:30] C54: Giuoco Piano: 4 c3 Nf6, main lines with 5 d4 and 5 d3} (8. Re1 Bb6 9. h3 Nd8 10. d4 c6 11. Nbd2 Kh8 12. a4 Bc7 13. Bc2 g6 14. b3 Ne6 15. Nc4 Rd8 {1-0 (43) Delchev,A (2637)-Tonkov,B (2323) Sunny Beach 2013}) 8... h6 {[%emt 0:00:30]} 9. Re1 {[%emt 0:02:30]} Bb6 {[%emt 0:03:30]} 10. Nbd2 {[%emt 0:02:30]} Na5 {[%emt 0:01:30]} 11. Bc2 {[%emt 0:01:30]} c5 {[%emt 0:00:30]} 12. a3 $146 {[%emt 0:08:30]} ({Predecessor:} 12. Nf1 Nc6 13. Ng3 Be6 14. Nh4 Qd7 15. Qf3 Nh7 {1-0 (92) Vaibhav,S (2013)-Joglekar,A Mumbai 2008}) 12... Bc7 {[%emt 0:01:00]} 13. Nf1 {[%emt 0:08:30]} Nc6 {[%emt 0:03:30]} 14. Ne3 {[%emt 0:01:30]} Be6 {[%emt 0:03:30]} 15. d4 {[%emt 0:06:30]} cxd4 {[%emt 0:05:30]} 16. cxd4 {[%emt 0:00:30]} Bd7 {[%emt 0:31:00]} 17. Nd5 {[%emt 0:45:30]} Nxd5 {[%emt 0:01:30]} 18. exd5 {[%emt 0:00:30]} Nd8 {[%emt 0:00:00]} 19. dxe5 {[%emt 0:04:30]} dxe5 {[%emt 0:02:00] [#]} 20. Bf4 $1 {[%emt 0:03:30]} f6 {[%emt 0:02:30] [#]} 21. Nh4 $1 {[%emt 0:10:30]} Re8 {[%emt 0:02:30]} 22. Bg6 {[%emt 0:09:30]} (22. Qh5 $18) 22... Rf8 $2 {[%emt 0:02:30]} (22... Nf7 $16 23. Bd2 Rec8) 23. Qc2 {[%emt 0:00:30]} Be8 {[%emt 0:01:30]} 24. Rac1 {[%emt 0:00:30]} Bd6 {[%emt 0:04:30]} 25. Re3 {[%emt 0:04:22]} (25. Bxh6 $142 gxh6 26. Nf5) 25... Qd7 {[%emt 0:07:30] [#]} 26. Bxh6 $1 {[%emt 0:04:57]} Bxg6 {[%emt 0:57:00]} 27. Qxg6 {[%emt 0:02:28]} Rf7 {[%emt 1:07:30]} 28. Nf5 {[%emt 1:34:58]} Bf8 {[%emt 0:00:30]} 29. Rg3 {[%emt 0:00:30]} b5 {[%emt 0:00:30]} 30. h4 {[%emt 0:02:13]} Nb7 {[%emt 0:00:30]} 31. Bxg7 {[%emt 0:01:38]} Rxg7 {[%emt 0:01:30]} 32. Nxg7 {[%emt 0:00:38]} Bxg7 {[%emt 0:00:30]} 33. h5 {[%emt 0:01:25]} Nd6 {[%emt 0:01:30]} 34. h6 {[%emt 0:00:46]} Nf5 $18 {[%emt 0:00:30]} 35. Rh3 {[%emt 0:00:50]} Nd4 36. hxg7 {[%emt 1:43:55]} Ne2+ {[%emt 1:28:00]} 37. Kf1 {[%emt 0:00:27]} Qxh3 {[%emt 0:00:30]} 38. gxh3 {[%emt 0:00:11]} Nxc1 {[%emt 0:00:00]} 39. Qh6 {[%emt 0:00:15]} 1-0

[Event "27th CRO-chT 1B-Men 2018"]
[Site "Biograd"]
[Date "2018.09.16"]
[Round "2.21"]
[White "Dabo-Peranic, Robert"]
[Black "Matkovic, Tonci"]
[Result "1/2-1/2"]
[ECO "E17"]
[WhiteElo "2284"]
[BlackElo "2274"]
[Annotator "ChessBase"]
[PlyCount "63"]
[EventDate "2018.09.15"]
[EventType "team-tourn"]
[EventCountry "CRO"]
[SourceTitle "playchess.com"]
[Source "ChessBase"]
[SourceQuality "1"]
[TimeControl "40/5400+30:1800+30"]

1. d4 d5 2. c4 e6 3. Nf3 Nf6 4. g3 Be7 5. Bg2 Nbd7 6. O-O O-O 7. b3 c5 8. e3 b6 9. Bb2 Bb7 10. Nbd2 Rc8 11. Rc1 Re8 12. Re1 Bf8 13. Qc2 h6 14. Qb1 cxd4 15. exd4 Ba8 16. Qa1 Rc7 17. Rc2 Qe7 18. Rec1 Rec8 19. Qb1 Qd8 20. Bf1 Bb4 21. Bc3 Be7 22. a4 Ba3 23. Bb2 Bb4 24. Bc3 Ba3 25. Re1 Be7 26. Qa1 Qf8 27. a5 Bb4 28. axb6 axb6 29. Bxb4 Qxb4 30. Ra2 Bc6 31. Bd3 {[%emt 1:36:35]} Ne4 {[%emt 1:37:02]} 32. Bxe4 {[%emt 0:02:06]} 1/2-1/2

[Event "27th CRO-chT 1B-Men 2018"]
[Site "Biograd"]
[Date "2018.09.16"]
[Round "2.22"]
[White "Vlaic, Branko"]
[Black "Martic, Zlatko"]
[Result "1/2-1/2"]
[ECO "A43"]
[WhiteElo "2246"]
[BlackElo "2244"]
[Annotator "ChessBase"]
[PlyCount "56"]
[EventDate "2018.09.15"]
[EventType "team-tourn"]
[EventCountry "CRO"]
[SourceTitle "playchess.com"]
[Source "ChessBase"]
[SourceQuality "1"]
[TimeControl "40/5400+30:1800+30"]

1. d4 Nf6 2. Nf3 c5 3. d5 g6 4. Nc3 Bg7 5. e4 O-O 6. e5 Ng4 7. Bf4 d6 8. exd6 exd6 9. Be2 Re8 10. O-O a6 11. a4 Ne5 12. h3 Nbd7 13. Qd2 b6 14. Rfe1 Nxf3+ 15. Bxf3 Ne5 16. Be2 f5 17. Bg5 Qc7 18. Bf1 Bd7 19. f4 Nf7 20. Rxe8+ Rxe8 21. Bh4 Qb7 22. Qd3 b5 23. axb5 axb5 24. Nxb5 Bxb2 25. Rb1 {[%emt 0:48:30]} Bg7 {[%emt 1:37:05]} 26. c4 {[%emt 0:02:30]} Qb6 {[%emt 0:00:15]} 27. Bf2 {[%emt 0:01:30]} Qa5 {[%emt 0:00:22]} 28. Be2 {[%emt 0:01:30]} Qa2 {[%emt 0:00:58]} 1/2-1/2

[Event "27th CRO-chT 1B-Men 2018"]
[Site "Biograd"]
[Date "2018.09.18"]
[Round "2.23"]
[White "Rubil, Marko"]
[Black "Malenica, Mario"]
[Result "0-1"]
[ECO "B36"]
[WhiteElo "2201"]
[BlackElo "2212"]
[Annotator "ChessBase"]
[PlyCount "82"]
[EventDate "2018.09.15"]
[EventType "team-tourn"]
[EventCountry "CRO"]
[SourceTitle "playchess.com"]
[Source "ChessBase"]
[SourceQuality "1"]
[TimeControl "40/5400+30:1800+30"]

1. e4 c5 2. Nf3 g6 3. d4 cxd4 4. Nxd4 Nc6 5. c4 Nf6 6. Nc3 d6 7. Be2 Nxd4 8. Qxd4 Bg7 9. Bg5 O-O 10. Qd2 a5 11. O-O a4 12. Bh6 Qa5 13. Bxg7 Kxg7 14. Qd4 Be6 15. Nb5 Rfc8 16. a3 Bd7 17. Rac1 Rc5 18. Nc3 Be6 19. Nd5 Bxd5 20. exd5 Rac8 21. Rc3 {[%emt 1:38:30]} R5c7 {[%emt 1:32:30]} 22. Rfc1 {[%emt 0:00:30]} Qc5 {[%emt 0:00:52]} 23. Qh4 {[%emt 0:00:01]} e5 {[%emt 0:03:40]} 24. Rd1 {[%emt 0:01:43]} Ng8 {[%emt 0:01:39]} 25. g4 {[%emt 0:00:48]} f6 {[%emt 0:00:31]} 26. Qg3 {[%emt 0:00:09]} Rf7 {[%emt 0:00:18]} 27. Kg2 {[%emt 0:01:00]} Ne7 {[%emt 0:00:16]} 28. f4 {[%emt 0:00:46]} exf4 {[%emt 0:02:12]} 29. Qxf4 {[%emt 0:00:29]} g5 {[%emt 0:00:08]} 30. Qe4 {[%emt 0:00:38]} Ng6 {[%emt 0:00:30]} 31. Bd3 {[%emt 0:00:12]} Re7 {[%emt 0:00:09]} 32. Qxe7+ {[%emt 0:00:43]} Nxe7 {[%emt 0:00:09]} 33. Re1 {[%emt 0:00:08]} Rc7 {[%emt 0:00:14]} 34. Re4 {[%emt 0:00:41]} Ng6 {[%emt 0:00:14]} 35. Bc2 {[%emt 0:00:07]} Re7 {[%emt 0:01:20]} 36. Rxe7+ {[%emt 0:00:41]} Nxe7 {[%emt 0:00:04]} 37. Bxa4 {[%emt 0:00:20]} Ng6 {[%emt 0:00:06]} 38. Bc2 {[%emt 0:00:38]} Nf4+ {[%emt 0:01:54]} 39. Kf3 {[%emt 0:00:01]} Qd4 {[%emt 0:00:24]} 40. a4 {[%emt 0:00:00]} Qd2 {[%emt 0:00:00]} 41. Ke4 {[%emt 0:03:25]} Qe2+ {[%emt 0:03:20]} 0-1

[Event "27th CRO-chT 1B-Men 2018"]
[Site "Biograd"]
[Date "2018.09.18"]
[Round "2.24"]
[White "Grgurevic, Boris"]
[Black "Matanovic, Luka"]
[Result "0-1"]
[ECO "C50"]
[WhiteElo "2145"]
[BlackElo "2252"]
[Annotator "ChessBase"]
[PlyCount "108"]
[EventDate "2018.09.15"]
[EventType "team-tourn"]
[EventCountry "CRO"]
[SourceTitle "playchess.com"]
[Source "ChessBase"]
[SourceQuality "1"]
[TimeControl "40/5400+30:1800+30"]

1. e4 e5 2. Bc4 Nf6 3. d3 Nc6 4. Nf3 Bc5 5. Be3 Bxe3 6. fxe3 d5 7. exd5 Nxd5 8. Qd2 O-O 9. O-O Nb6 10. Bb3 Qe7 11. Nc3 Be6 12. Bxe6 Qxe6 13. e4 Rad8 14. Qg5 Qg6 15. Qxg6 hxg6 16. a4 a5 17. Nb5 Rd7 18. Rf2 f6 19. b3 Nd8 20. Rd1 Ne6 21. Rfd2 Rfd8 22. Kf2 g5 23. d4 g4 24. Nh4 exd4 25. Nf5 c6 26. Na3 Kh7 27. Ke1 g6 28. Ng3 Kg7 29. Kf2 Ng5 30. Nb1 c5 31. Na3 Re8 32. c3 Nxe4+ 33. Nxe4 Rxe4 34. cxd4 Rexd4 35. Rxd4 cxd4 36. Rd3 f5 37. Nb5 Kf6 38. Rxd4 Ke5 39. Rxd7 Nxd7 40. Na3 Kd4 41. Nb5+ Kd3 42. Kg3 Nc5 43. h4 gxh3 44. gxh3 Ke3 45. Kg2 f4 46. Kf1 Nxb3 47. Nc3 Nc5 48. h4 Kf3 49. Nd5 Kg3 50. Ne7 f3 51. Nxg6 Ne4 {[%emt 1:59:30]} 52. Ke1 {[%emt 2:22:21]} f2+ {[%emt 0:00:30]} 53. Ke2 {[%emt 0:00:38]} Nc3+ {[%emt 0:00:30]} 54. Kf1 {[%emt 0:00:34]} Nd5 {[%emt 0:00:30]} 0-1

[Event "27th CRO-chT 1B-Men 2018"]
[Site "Biograd"]
[Date "2018.09.16"]
[Round "2.28"]
[White "Muha, Miljenko"]
[Black "Rogulj, Branko"]
[Result "1-0"]
[ECO "B22"]
[WhiteElo "2364"]
[BlackElo "2404"]
[Annotator "ChessBase"]
[PlyCount "61"]
[EventDate "2018.09.15"]
[EventType "team-tourn"]
[EventCountry "CRO"]
[SourceTitle "playchess.com"]
[Source "ChessBase"]
[SourceQuality "1"]
[TimeControl "40/5400+30:1800+30"]

1. Nf3 Nf6 2. c4 c5 3. Nc3 Nc6 4. e3 e6 5. d4 d5 6. cxd5 Nxd5 7. Bd3 cxd4 8. exd4 Bb4 9. O-O O-O 10. Bc2 Nf6 11. Qd3 Be7 12. a3 b6 13. Bg5 g6 14. Rad1 Bb7 15. Rfe1 Rc8 16. Bb3 Kg7 17. Qe3 Ng8 18. d5 exd5 19. Nxd5 Bxg5 20. Nxg5 Re8 21. Qc3+ Ne5 22. Nxf7 Qh4 23. Nc7 Rxc7 24. Qxc7 Re7 25. Qc3 Qg4 26. Qg3 Qxg3 27. hxg3 {[%emt 1:35:51]} Rxf7 {[%emt 1:37:28]} 28. Rxe5 {[%emt 0:00:13]} Rc7 {[%emt 0:00:08]} 29. Rde1 {[%emt 0:01:06]} Ba6 {[%emt 0:03:24]} 30. Bxg8 {[%emt 0:00:24]} Kxg8 {[%emt 0:00:12]} 31. Re7 {[%emt 0:00:05]} 1-0

[Event "27th CRO-chT 1B-Men 2018"]
[Site "Biograd"]
[Date "2018.09.17"]
[Round "3.3"]
[White "Rade, Miroslav"]
[Black "Krstic, Uros"]
[Result "1/2-1/2"]
[ECO "B15"]
[WhiteElo "2395"]
[BlackElo "2364"]
[Annotator "RC"]
[PlyCount "42"]
[EventDate "2018.09.15"]
[EventType "team-tourn"]
[EventCountry "CRO"]
[SourceTitle "playchess.com"]
[Source "ChessBase"]
[SourceQuality "1"]
[TimeControl "40/5400+30:1800+30"]

1. e4 {[%emt 0:00:30]} c6 {[%emt 0:04:30]} 2. Nc3 {[%emt 0:00:30]} d5 {[%emt 0:00:30]} 3. Nf3 {[%emt 0:00:00]} dxe4 {[%emt 0:00:30]} 4. Nxe4 {[%emt 0:00:00]} Nf6 {[%emt 0:00:00]} 5. Nxf6+ {[%emt 0:00:30]} exf6 {[%emt 0:00:00]} 6. d4 {[%emt 0:00:00]} Bd6 {[%emt 0:00:30]} 7. Bd3 {[%emt 0:00:00]} O-O {[%emt 0:00:30]} 8. O-O {[%emt 0:00:30]} Re8 {[%emt 0:06:30]} 9. h3 {[%emt 0:10:30]} Nd7 {[%emt 0:02:30]} 10. Bd2 {[%emt 0:10:30]} Nf8 {[%emt 0:03:30]} 11. c4 {[%emt 0:03:30]} Be6 {[%emt 0:06:30]} 12. Re1 {[%emt 0:16:30]} Qd7 {[%emt 0:06:30]} 13. Qb3 {[%emt 0:04:30]} Rad8 {[%emt 0:11:30]} 14. Rad1 {[%emt 0:02:30]} Bb8 {[%emt 0:06:30]} 15. Ba5 {[%emt 0:06:30]} b6 {[%emt 0:06:30]} 16. Bd2 {[%emt 0:02:30]} Ng6 {[%emt 0:01:30]} 17. Bc1 {[%emt 0:00:30]} Qc7 {[%emt 0:02:30]} 18. Kf1 {[%emt 0:04:30]} Qc8 {[%emt 0:13:30]} 19. Kg1 {[%emt 0:00:30]} Qc7 {[%emt 0:07:58]} 20. Kf1 {[%emt 0:00:00]} Qc8 {[%emt 0:11:33]} 21. Kg1 {[%emt 0:00:00]} Qc7 {[%emt 0:01:41]} 1/2-1/2